bitfinex/quotes_SOLUSD_20250417
["timestamp","ask_amount","ask_price","bid_price","bid_amount"]
[1744911318464,0.07,135.65,135.64,34.52583911]
[1744911319177,0.07,135.65,135.64,16.36216157]
[1744911319478,0.07,135.65,135.64,71.90781179]
[1744911320067,11.53979691,135.69,135.68,20.0]
[1744911320251,12.42883285,135.71,135.7,57.38197268]
[1744911320556,9.8851428,135.78,135.73,0.14216157]
[1744911320750,9.8851428,135.78,135.72,20.0]
[1744911320957,18.30583911,135.75,135.7,18.30583911]
[1744911321152,29.16173743,135.77,135.72,29.16173743]
[1744911321358,39.04688023,135.78,135.73,29.16173743]
[1744911321583,9.8851428,135.78,135.74,29.16173743]
[1744911322056,9.8851428,135.78,135.72,29.16173743]
[1744911322057,29.16173743,135.77,135.72,29.16173743]
[1744911322252,9.8851428,135.78,135.67,64.64964886]
[1744911322253,29.16173743,135.8,135.73,11.3749554]
[1744911322473,55.16173743,135.77,135.72,29.16173743]
[1744911322659,18.64964886,135.81,135.72,29.16173743]
[1744911322867,29.16173743,135.77,135.72,29.16173743]
[1744911323060,26.0,135.8,135.72,29.16173743]
[1744911323260,26.0,135.8,135.73,29.16173743]
[1744911323464,29.16173743,135.78,135.73,29.16173743]
[1744911323977,29.16173743,135.78,135.74,29.16173743]
[1744911324350,25.80509389,135.79,135.71,11.3749554]
[1744911324351,29.16173743,135.76,135.71,11.3749554]
[1744911324550,18.64964886,135.78,135.71,11.3749554]
[1744911324767,29.16173743,135.75,135.71,11.3749554]
[1744911324969,29.16173743,135.75,135.71,40.53669283]
[1744911325165,29.16173743,135.75,135.7,29.16173743]
[1744911326372,36.52876262,135.74,135.7,29.16173743]
[1744911326573,54.9463256,135.74,135.7,29.16173743]
[1744911326767,29.16173743,135.71,135.67,11.3749554]
[1744911326962,29.16173743,135.72,135.67,40.53669283]
[1744911327366,29.16173743,135.7,135.67,11.3749554]
[1744911327578,29.16173743,135.69,135.67,11.3749554]
[1744911327766,29.16173743,135.7,135.67,11.3749554]
[1744911327970,107.269363,135.74,135.67,11.3749554]
[1744911328165,29.16173743,135.7,135.67,11.3749554]
[1744911328472,36.53202044,135.68,135.67,11.3749554]
[1744911328678,54.95772798,135.68,135.6,29.16173743]
[1744911328861,29.16173743,135.64,135.59,286.79669283]
[1744911329062,29.16173743,135.64,135.59,270.59669283]
[1744911329279,29.16173743,135.62,135.57,29.16173743]
[1744911329477,29.16173743,135.64,135.59,29.16173743]
[1744911329779,29.16173743,135.63,135.58,29.16173743]
[1744911330478,7.37354372,135.62,135.58,29.16173743]
[1744911330662,25.80740303,135.62,135.59,29.16173743]
[1744911331074,7.37354372,135.62,135.61,29.16173743]
[1744911331269,7.37082626,135.67,135.61,29.16173743]
[1744911331469,7.37082626,135.67,135.63,29.16173743]
[1744911331865,7.37082626,135.67,135.65,29.16173743]
[1744911332062,7.37082626,135.67,135.64,29.16173743]
[1744911332262,7.37082626,135.67,135.63,29.16173743]
[1744911332463,36.53256369,135.67,135.62,29.16173743]
[1744911332672,29.16173743,135.65,135.61,29.16173743]
[1744911332874,54.95962936,135.67,135.62,29.16173743]
[1744911333278,29.16173743,135.66,135.62,29.16173743]
[1744911333482,71.69100316,135.72,135.64,29.16173743]
[1744911333685,29.16173743,135.69,135.64,29.16173743]
[1744911334086,29.16173743,135.68,135.64,29.16173743]
[1744911334288,7.37082626,135.67,135.63,29.16173743]
[1744911334789,29.16173743,135.66,135.62,29.16173743]
[1744911335363,29.16173743,135.63,135.59,29.16173743]
[1744911335569,29.16173743,135.61,135.57,29.16173743]
[1744911335783,29.16173743,135.6,135.52,16.2]
[1744911336064,29.16173743,135.59,135.5,3.6359189]
[1744911336291,29.16173743,135.59,135.54,29.16173743]
[1744911336292,25.81501696,135.58,135.54,29.16173743]
[1744911336463,7.37571913,135.58,135.55,29.16173743]
[1744911336668,7.37463126,135.6,135.56,29.16173743]
[1744911336879,7.37191301,135.65,135.59,29.16173743]
[1744911337189,36.53365044,135.65,135.61,29.16173743]
[1744911337490,29.16173743,135.63,135.58,29.16173743]
[1744911337873,29.16173743,135.62,135.55,16.2]
[1744911338184,29.16173743,135.62,135.58,29.16173743]
[1744911338390,29.16173743,135.63,135.59,29.16173743]
[1744911338573,18.43243576,135.64,135.6,29.16173743]
[1744911338768,47.59417319,135.64,135.6,29.16173743]
[1744911338963,29.16173743,135.63,135.55,42.2]
[1744911339177,29.16173743,135.62,135.58,29.16173743]
[1744911339377,29.16173743,135.63,135.58,29.16173743]
[1744911339589,47.59417319,135.64,135.59,29.16173743]
[1744911339969,54.96662969,135.64,135.59,29.16173743]
[1744911340174,54.96662969,135.64,135.6,29.16173743]
[1744911340381,25.80489226,135.64,135.61,29.16173743]
[1744911340995,25.80489226,135.64,135.6,29.16173743]
[1744911341487,7.3713696,135.66,135.63,29.16173743]
[1744911341691,25.7997936,135.66,135.59,0.14216157]
[1744911341865,54.96153103,135.66,135.62,29.16173743]
[1744911342196,25.7997936,135.66,135.62,29.16173743]
[1744911342393,54.96153103,135.66,135.61,29.16173743]
[1744911342767,25.7997936,135.66,135.62,29.16173743]
[1744911342972,7.3713696,135.66,135.65,29.16173743]
[1744911343596,54.95715686,135.69,135.65,29.16173743]
[1744911343808,29.16173743,135.68,135.63,29.16173743]
[1744911343999,29.16173743,135.68,135.64,29.16173743]
[1744911344209,54.95715686,135.69,135.64,29.16173743]
[1744911344710,54.95715686,135.69,135.6,23.69660621]
[1744911344711,7.36973984,135.69,135.6,23.69660621]
[1744911345004,36.53147727,135.69,135.64,29.16173743]
[1744911345307,36.53147727,135.69,135.65,29.16173743]
[1744911345479,54.95582689,135.69,135.65,29.16173743]
[1744911345986,29.16173743,135.67,135.6,16.18]
[1744911346194,29.16173743,135.67,135.63,29.16173743]
[1744911347001,29.16173743,135.66,135.61,29.16173743]
[1744911347192,29.16173743,135.65,135.61,29.16173743]
[1744911347512,29.16173743,135.66,135.61,29.16173743]
[1744911348013,29.16173743,135.64,135.59,45.34173743]
[1744911348182,29.16173743,135.63,135.58,29.16173743]
[1744911348382,29.16173743,135.62,135.55,16.18]
[1744911348710,29.16173743,135.6,135.55,45.34173743]
[1744911348910,29.16173743,135.59,135.55,45.34173743]
[1744911349084,29.16173743,135.6,135.56,29.16173743]
[1744911349284,29.16173743,135.6,135.55,45.34173743]
[1744911349710,7.37517516,135.59,135.55,45.34173743]
[1744911350000,7.37517516,135.59,135.56,29.16173743]
[1744911350197,7.37517516,135.59,135.57,29.16173743]
[1744911350798,7.37517516,135.59,135.58,29.16173743]
[1744911350984,7.37408745,135.61,135.55,16.18]
[1744911351177,7.37408745,135.61,135.57,29.16173743]
[1744911351401,7.37408745,135.61,135.6,29.16173743]
[1744911351593,7.37408745,135.61,135.59,29.16173743]
[1744911351795,7.37408745,135.61,135.55,23.5571726]
[1744911351796,7.37408745,135.61,135.58,29.16173743]
[1744911352909,54.97104352,135.61,135.57,29.16173743]
[1744911353808,25.80930609,135.61,135.57,29.16173743]
[1744911354514,25.80930609,135.61,135.57,23.02751187]
[1744911355193,7.37517516,135.59,135.56,29.16173743]
[1744911355389,29.16173743,135.58,135.53,0.063]
[1744911355593,29.16173743,135.58,135.53,29.22473743]
[1744911355794,54.97485049,135.59,135.54,29.16173743]
[1744911357793,7.37517516,135.59,135.57,29.16173743]
[1744911357998,7.37517516,135.59,135.58,29.16173743]
[1744911358185,7.37408745,135.61,135.58,29.16173743]
[1744911358602,7.37408745,135.61,135.59,29.16173743]
[1744911359187,25.80930609,135.61,135.57,29.16173743]
[1744911359490,25.80930609,135.61,135.6,29.16173743]
[1744911359491,7.37408745,135.61,135.6,29.16173743]
[1744911359692,7.37408745,135.61,135.58,29.16173743]
[1744911359998,54.97104352,135.61,135.56,29.16173743]
[1744911360311,7.37408745,135.61,135.58,29.16173743]
[1744911360510,7.37408745,135.61,135.57,29.16173743]
[1744911360692,29.16173743,135.6,135.56,29.16173743]
[1744911360898,29.16173743,135.6,135.55,29.16173743]
[1744911361414,29.16173743,135.63,135.58,29.16173743]
[1744911361589,29.16173743,135.62,135.58,29.16173743]
[1744911362298,29.16173743,135.61,135.57,29.16173743]
[1744911362617,0.28432314,135.64,135.57,29.16173743]
[1744911362618,29.16173743,135.62,135.57,29.16173743]
[1744911362986,29.16173743,135.63,135.58,29.16173743]
[1744911363408,7.37354372,135.62,135.59,29.16173743]
[1744911363593,7.37191301,135.65,135.61,29.16173743]
[1744911363794,25.80169553,135.65,135.61,29.16173743]
[1744911364588,54.96343296,135.65,135.61,29.16173743]
[1744911364795,54.96343296,135.65,135.56,7.51896888]
[1744911364796,54.96343296,135.65,135.6,29.16173743]
[1744911365285,29.16173743,135.64,135.54,16.34216157]
[1744911365486,29.16173743,135.61,135.57,29.16173743]
[1744911365707,29.16173743,135.61,135.56,29.16173743]
[1744911366012,29.16173743,135.61,135.57,29.16173743]
[1744911366212,29.16173743,135.62,135.57,29.16173743]
[1744911366413,25.80169553,135.65,135.6,29.16173743]
[1744911366615,25.80169553,135.65,135.61,29.16173743]
[1744911366987,54.96343296,135.65,135.6,29.16173743]
[1744911367186,54.96343296,135.65,135.62,29.16173743]
[1744911367187,7.37191301,135.65,135.62,29.16173743]
[1744911367403,26.50288097,135.68,135.64,29.16173743]
[1744911367404,18.42648097,135.68,135.64,29.16173743]
[1744911367695,29.16173743,135.67,135.62,29.16173743]
[1744911368094,54.95850141,135.68,135.63,29.16173743]
[1744911368290,25.79676398,135.68,135.64,29.16173743]
[1744911368495,7.37028301,135.68,135.65,29.16173743]
[1744911369515,7.36973984,135.69,135.65,29.16173743]
[1744911370113,7.36973984,135.69,135.62,7.37339244]
[1744911370114,29.16173743,135.68,135.63,29.16173743]
[1744911370314,62.6427887,135.69,135.61,29.16173743]
[1744911370520,29.16173743,135.65,135.6,112.06173743]
[1744911370698,29.16173743,135.65,135.61,29.16173743]
[1744911370895,29.16173743,135.66,135.61,29.16173743]
[1744911371099,29.16173743,135.67,135.62,29.16173743]
[1744911371300,25.79408946,135.69,135.63,29.16173743]
[1744911371506,54.95582689,135.69,135.64,29.16173743]
[1744911371700,25.79408946,135.69,135.65,29.16173743]
[1744911371900,54.95582689,135.69,135.65,29.16173743]
[1744911372217,54.95582689,135.69,135.62,82.9]
[1744911372218,29.16173743,135.68,135.62,82.9]
[1744911372398,25.79408946,135.69,135.62,112.06173743]
[1744911372399,29.16173743,135.66,135.62,112.06173743]
[1744911372604,29.16173743,135.66,135.61,29.16173743]
[1744911373717,7.37191301,135.65,135.61,29.16173743]
[1744911374101,7.37191301,135.65,135.6,29.16173743]
[1744911374102,29.16173743,135.64,135.6,29.16173743]
[1744911375119,29.16173743,135.64,135.59,29.16173743]
[1744911375326,7.37300007,135.63,135.59,29.16173743]
[1744911375515,36.5347375,135.63,135.58,112.06173743]
[1744911377011,7.37300007,135.63,135.6,29.16173743]
[1744911377838,18.42736566,135.67,135.62,29.16173743]
[1744911378133,47.58910309,135.67,135.62,29.16173743]
[1744911378811,54.95992935,135.67,135.62,29.16173743]
[1744911381212,29.16173743,135.66,135.62,29.16173743]
[1744911381407,25.79819192,135.67,135.63,29.16173743]
[1744911381824,7.36973984,135.69,135.66,29.16173743]
[1744911382735,18.42402753,135.7,135.66,29.16173743]
[1744911382914,25.79322428,135.7,135.66,29.16173743]
[1744911383115,25.79322428,135.7,135.67,29.16173743]
[1744911383315,7.36919675,135.7,135.67,29.16173743]
[1744911383939,7.36811081,135.72,135.69,29.16173743]
[1744911385116,7.39781567,135.73,135.7,29.16173743]
[1744911385418,7.39781567,135.73,135.67,102.94041003]
[1744911385419,7.39781567,135.73,135.69,29.16173743]
[1744911387922,54.97847301,135.73,135.68,29.16173743]
[1744911389047,54.97847301,135.73,135.68,112.06173743]
[1744911389453,29.16173743,135.71,135.68,82.9]
[1744911389734,29.16173743,135.7,135.65,138.06173743]
[1744911390144,29.16173743,135.7,135.65,112.06173743]
[1744911390317,29.16173743,135.66,135.62,112.06173743]
[1744911390530,29.16173743,135.66,135.62,82.9]
[1744911390743,29.16173743,135.65,135.62,82.9]
[1744911391050,7.3724565,135.64,135.61,16.18]
[1744911391222,7.3724565,135.64,135.61,45.34173743]
[1744911391944,7.3724565,135.64,135.62,29.16173743]
[1744911392441,7.3724565,135.64,135.61,45.34173743]
[1744911394448,7.3724565,135.64,135.62,29.16173743]
[1744911394742,7.3724565,135.64,135.61,45.34173743]
[1744911394951,7.3724565,135.64,135.61,128.24173743]
[1744911395251,29.16173743,135.66,135.61,128.24173743]
[1744911396443,7.37191301,135.65,135.61,128.24173743]
[1744911396739,36.84844018,135.7,135.61,128.24173743]
[1744911396740,0.03,135.73,135.71,0.14216157]
[1744911397039,0.03,135.74,135.72,29.303899]
[1744911397238,0.03,135.74,135.73,58.32347486]
[1744911397445,0.03,135.74,135.73,29.16173743]
[1744911398043,0.03,135.74,135.73,29.303899]
[1744911399861,0.03,135.75,135.74,38.79181043]
[1744911400162,29.16173743,135.82,135.74,20.14216157]
[1744911400369,29.16173743,135.8,135.75,29.16173743]
[1744911400548,29.16173743,135.8,135.76,16.18]
[1744911400864,7.36431254,135.79,135.76,45.34173743]
[1744911401266,29.16173743,135.78,135.73,26.0]
[1744911401559,29.16173743,135.77,135.73,82.9]
[1744911401755,29.16173743,135.75,135.72,16.18]
[1744911401965,7.36322803,135.81,135.75,46.0]
[1744911402139,36.52496546,135.81,135.76,45.34173743]
[1744911402352,7.36051818,135.86,135.78,29.16173743]
[1744911402647,7.36377025,135.8,135.76,29.16173743]
[1744911402847,7.36377025,135.8,135.77,29.16173743]
[1744911403253,7.36377025,135.8,135.76,29.16173743]
[1744911403645,54.9349333,135.8,135.75,29.16173743]
[1744911403858,29.16173743,135.79,135.74,29.16173743]
[1744911404661,7.36485491,135.78,135.74,29.16173743]
[1744911404866,25.77699219,135.78,135.74,29.16173743]
[1744911405060,7.36485491,135.78,135.76,29.16173743]
[1744911405766,7.36485491,135.78,135.73,29.16173743]
[1744911405767,36.52659234,135.78,135.74,29.16173743]
[1744911406072,36.52659234,135.78,135.7,6.051]
[1744911406073,29.16173743,135.75,135.7,29.16173743]
[1744911406365,29.16173743,135.76,135.71,29.16173743]
[1744911406672,25.78268876,135.75,135.71,29.16173743]
[1744911407352,29.16173743,135.74,135.67,89.3412]
[1744911407569,29.16173743,135.72,135.67,112.06173743]
[1744911408086,29.16173743,135.73,135.68,29.16173743]
[1744911408384,29.16173743,135.74,135.67,82.9]
[1744911408551,29.16173743,135.74,135.69,29.16173743]
[1744911409076,25.78648787,135.73,135.69,29.16173743]
[1744911409371,7.36756796,135.73,135.71,29.16173743]
[1744911410469,25.78268876,135.75,135.71,29.16173743]
[1744911410671,54.94442619,135.75,135.7,29.16173743]
[1744911411659,29.16173743,135.74,135.69,29.16173743]
[1744911411859,54.94442619,135.75,135.7,29.16173743]
[1744911412065,29.16173743,135.73,135.68,29.16173743]
[1744911412563,7.36811081,135.72,135.68,29.16173743]
[1744911412766,25.78838785,135.72,135.67,29.16173743]
[1744911412969,29.16173743,135.7,135.65,275.30173743]
[1744911413178,29.16173743,135.7,135.65,45.58173743]
[1744911413366,29.16173743,135.71,135.66,29.16173743]
[1744911414581,25.7902881,135.71,135.67,29.16173743]
[1744911415965,29.16173743,135.69,135.64,29.16173743]
[1744911416278,29.16173743,135.68,135.63,29.16173743]
[1744911416475,32.0333,135.69,135.65,29.16173743]
[1744911416675,26.0,135.69,135.66,29.16173743]
[1744911417379,26.0,135.7,135.67,29.16173743]
[1744911417566,25.7902881,135.71,135.68,29.16173743]
[1744911417767,35.19503743,135.73,135.68,29.16173743]
[1744911418070,7.36811081,135.72,135.7,29.16173743]
[1744911418975,7.36811081,135.72,135.71,29.16173743]
[1744911419599,7.36811081,135.72,135.67,0.14216157]
[1744911419897,7.36702519,135.74,135.71,29.16173743]
[1744911420057,29.16173743,135.77,135.72,29.16173743]
[1744911420267,7.36539736,135.77,135.76,29.16173743]
[1744911421012,7.36539736,135.77,135.74,29.16173743]
[1744911421186,7.36539736,135.77,135.73,29.16173743]
[1744911421704,36.52713479,135.77,135.73,29.16173743]
[1744911421908,7.3664825,135.75,135.72,29.16173743]
[1744911422084,7.3664825,135.75,135.73,29.16173743]
[1744911423312,26.0,135.75,135.73,29.16173743]
[1744911424720,25.77900078,135.77,135.72,29.16173743]
[1744911425013,80.94073821,135.77,135.72,29.16173743]
[1744911425307,80.94073821,135.77,135.69,16.42]
[1744911425308,29.16173743,135.73,135.69,29.16173743]
[1744911425511,29.16173743,135.73,135.67,82.9]
[1744911425512,29.16173743,135.73,135.67,99.32]
[1744911425708,29.16173743,135.73,135.68,29.16173743]
[1744911425913,29.16173743,135.72,135.67,45.58173743]
[1744911426098,29.16173743,135.72,135.67,29.16173743]
[1744911427401,25.7902881,135.71,135.67,29.16173743]
[1744911427718,7.36865374,135.71,135.69,29.16173743]
[1744911427905,7.36865374,135.71,135.7,29.16173743]
[1744911428103,7.36865374,135.71,135.69,29.16173743]
[1744911428705,7.36865374,135.71,135.7,29.16173743]
[1744911429303,18.42028414,135.72,135.69,29.16173743]
[1744911429510,18.42028414,135.72,135.68,29.16173743]
[1744911429912,18.42028414,135.72,135.66,29.22473743]
[1744911429913,29.16173743,135.71,135.66,29.22473743]
[1744911430301,29.16173743,135.68,135.66,0.063]
[1744911430904,55.16173743,135.69,135.66,0.063]
[1744911431512,7.37028301,135.68,135.66,0.063]
[1744911431719,36.53202044,135.68,135.66,0.063]
[1744911431933,36.53202044,135.68,135.66,29.16173743]
[1744911431934,25.79599055,135.68,135.66,29.16173743]
[1744911432216,25.79599055,135.68,135.65,29.16173743]
[1744911432619,25.79599055,135.68,135.64,29.16173743]
[1744911433508,25.79599055,135.68,135.65,29.16173743]
[1744911435127,25.79599055,135.68,135.61,0.14216157]
[1744911435339,25.79599055,135.68,135.65,29.16173743]
[1744911437002,54.95772798,135.68,135.63,29.16173743]
[1744911437203,29.16173743,135.67,135.62,29.16173743]
[1744911437921,25.79599055,135.68,135.62,29.16173743]
[1744911437922,29.16173743,135.66,135.62,29.16173743]
[1744911438119,29.16173743,135.65,135.61,29.16173743]
[1744911438810,7.37028301,135.68,135.64,29.16173743]
[1744911439017,7.37028301,135.68,135.66,29.16173743]
[1744911439719,7.37028301,135.68,135.65,29.16173743]
[1744911439935,7.37028301,135.68,135.61,83.04216157]
[1744911439936,7.37028301,135.68,135.66,29.16173743]
[1744911440103,7.37028301,135.68,135.67,29.16173743]
[1744911440518,7.37028301,135.68,135.66,29.16173743]
[1744911440928,54.95508828,135.7,135.66,29.16173743]
[1744911441124,25.79335085,135.7,135.67,29.16173743]
[1744911441421,7.36919675,135.7,135.69,29.16173743]
[1744911442622,25.78865596,135.72,135.69,29.16173743]
[1744911443325,54.95039339,135.72,135.65,16.18]
[1744911443516,54.95039339,135.72,135.67,29.16173743]
[1744911445625,54.95039339,135.72,135.66,29.16173743]
[1744911445811,54.95039339,135.72,135.67,29.16173743]
[1744911446729,54.95039339,135.72,135.68,29.16173743]
[1744911446730,25.78865596,135.72,135.68,29.16173743]
[1744911447315,25.78865596,135.72,135.69,29.16173743]
[1744911447718,25.78865596,135.72,135.68,29.16173743]
[1744911448325,25.78865596,135.72,135.69,29.16173743]
[1744911448729,25.78865596,135.72,135.66,29.16173743]
[1744911448730,25.78865596,135.72,135.68,29.16173743]
[1744911449612,18.42054515,135.72,135.69,29.16173743]
[1744911450521,18.42054515,135.72,135.68,29.16173743]
[1744911450720,18.42054515,135.72,135.65,108.0498363]
[1744911450721,47.58228258,135.72,135.67,29.16173743]
[1744911451111,36.65568609,135.72,135.67,18.23514094]
[1744911451531,18.42054515,135.72,135.67,18.23514094]
[1744911451717,25.78865596,135.72,135.68,18.23514094]
[1744911452838,25.78865596,135.72,135.69,18.23514094]
[1744911454015,7.36811081,135.72,135.71,18.23514094]
[1744911454926,18.41795345,135.74,135.71,18.23514094]
[1744911457639,25.78497864,135.74,135.71,18.23514094]
[1744911457840,25.78497864,135.74,135.7,18.23514094]
[1744911458041,18.23514094,135.73,135.69,82.9]
[1744911458546,18.23514094,135.71,135.69,82.9]
[1744911458731,18.23514094,135.7,135.69,82.9]
[1744911459244,18.23514094,135.7,135.66,18.23514094]
[1744911459548,18.23514094,135.71,135.66,18.23514094]
[1744911459744,7.36919675,135.7,135.66,18.23514094]
[1744911460122,18.23514094,135.68,135.63,16.18]
[1744911460338,18.23514094,135.68,135.63,34.41514094]
[1744911460544,18.23514094,135.67,135.63,34.41514094]
[1744911461441,18.23514094,135.66,135.61,18.23514094]
[1744911461857,25.80169553,135.65,135.61,18.23514094]
[1744911464946,25.80169553,135.65,135.62,18.23514094]
[1744911465553,25.80169553,135.65,135.61,18.23514094]
[1744911465849,25.80169553,135.65,135.62,18.23514094]
[1744911466150,25.80169553,135.65,135.61,18.23514094]
[1744911466442,18.23514094,135.63,135.6,0.063]
[1744911466646,7.37354372,135.62,135.6,0.063]
[1744911467157,25.60868466,135.62,135.6,0.063]
[1744911468345,7.37354372,135.62,135.6,0.063]
[1744911468645,25.60868466,135.62,135.6,0.063]
[1744911468851,7.37354372,135.62,135.6,18.29814094]
[1744911469030,7.37354372,135.62,135.61,18.23514094]
[1744911469529,7.37354372,135.62,135.6,18.29814094]
[1744911470544,25.80608701,135.63,135.6,18.29814094]
[1744911470727,25.80608701,135.63,135.6,0.063]
[1744911471536,25.80608701,135.63,135.6,18.29814094]
[1744911471737,7.37300007,135.63,135.6,18.29814094]
[1744911472246,44.04064119,135.63,135.6,0.063]
[1744911472451,18.23514094,135.62,135.6,0.063]
[1744911473051,7.37408745,135.61,135.6,0.063]
[1744911473946,25.60922839,135.61,135.6,0.063]
[1744911474349,7.37408745,135.61,135.6,0.063]
[1744911474542,25.60922839,135.61,135.6,0.063]
[1744911474743,25.60922839,135.61,135.59,1e-08]
[1744911474744,44.25887725,135.61,135.59,1e-08]
[1744911474932,18.23514094,135.6,135.54,18.23514094]
[1744911475134,18.23514094,135.58,135.54,18.23514094]
[1744911475754,25.80930609,135.61,135.57,18.23514094]
[1744911476053,25.80930609,135.61,135.58,18.23514094]
[1744911476442,25.80930609,135.61,135.53,7.44142926]
[1744911476634,25.80930609,135.61,135.58,18.23514094]
[1744911477036,25.80930609,135.61,135.59,18.23514094]
[1744911477254,25.80930609,135.61,135.58,18.23514094]
[1744911477634,25.80930609,135.61,135.57,18.23514094]
[1744911477837,25.80930609,135.61,135.58,18.23514094]
[1744911478541,18.43521864,135.61,135.58,18.23514094]
[1744911480148,18.43521864,135.61,135.6,18.23514094]
[1744911480352,22.7742,135.66,135.6,18.23514094]
[1744911480353,7.3713696,135.66,135.6,18.23514094]
[1744911480647,7.37028301,135.68,135.65,18.23514094]
[1744911480858,7.37028301,135.68,135.67,18.23514094]
[1744911481039,55.08027041,135.71,135.67,18.23514094]
[1744911481040,7.36865374,135.71,135.67,18.23514094]
[1744911481241,7.36865374,135.71,135.7,18.23514094]
[1744911481441,7.36865374,135.71,135.69,18.23514094]
[1744911481643,18.23514094,135.7,135.64,7.6539]
[1744911481874,25.60379468,135.71,135.67,18.23514094]
[1744911482539,44.02542904,135.71,135.67,18.23514094]
[1744911482758,44.02542904,135.71,135.66,18.23514094]
[1744911482953,18.23514094,135.7,135.65,18.23514094]
[1744911483440,80.86869777,135.71,135.66,18.23514094]
[1744911484257,80.86869777,135.71,135.62,16.18]
[1744911484258,25.7902881,135.71,135.67,18.23514094]
[1744911484564,18.23514094,135.68,135.64,18.23514094]
[1744911484746,7.37082626,135.67,135.64,18.23514094]
[1744911485749,25.79789193,135.67,135.65,18.23514094]
[1744911486282,7.37082626,135.67,135.66,18.23514094]
[1744911486761,7.36811081,135.72,135.66,18.23514094]
[1744911487072,44.02352879,135.72,135.68,18.23514094]
[1744911487363,25.78838785,135.72,135.67,18.23514094]
[1744911487560,62.62894193,135.72,135.66,18.23514094]
[1744911487747,18.23514094,135.71,135.67,18.23514094]
[1744911487950,18.23514094,135.71,135.66,18.23514094]
[1744911488163,18.23514094,135.7,135.66,18.23514094]
[1744911488547,18.23514094,135.71,135.66,18.23514094]
[1744911488747,44.02732958,135.7,135.66,18.23514094]
[1744911489466,18.23514094,135.69,135.64,18.23514094]
[1744911489847,18.23514094,135.68,135.63,18.23514094]
[1744911490159,18.23514094,135.66,135.61,18.23514094]
[1744911490468,18.23514094,135.62,135.57,7.9187]
[1744911490660,18.23514094,135.64,135.59,18.23514094]
[1744911490864,25.80550025,135.63,135.59,18.23514094]
[1744911491364,55.0169503,135.63,135.58,29.21145005]
[1744911491567,55.0169503,135.63,135.59,29.21145005]
[1744911492656,25.80550025,135.63,135.59,29.21145005]
[1744911493059,55.0169503,135.63,135.59,29.21145005]
[1744911493353,7.37300007,135.63,135.61,29.21145005]
[1744911493676,17.7508,135.68,135.62,29.21145005]
[1744911493677,7.37082626,135.67,135.62,29.21145005]
[1744911493871,36.58227631,135.67,135.63,29.21145005]
[1744911494176,36.58227631,135.67,135.62,29.21145005]
[1744911494552,55.00938587,135.67,135.63,29.21145005]
[1744911494755,25.79793582,135.67,135.63,29.21145005]
[1744911495264,25.79793582,135.67,135.64,29.21145005]
[1744911495573,29.21145005,135.65,135.61,112.11145005]
[1744911495757,29.21145005,135.63,135.59,29.21145005]
[1744911496075,18.64964886,135.66,135.6,29.21145005]
[1744911496278,29.21145005,135.64,135.59,29.21145005]
[1744911496667,25.80550025,135.63,135.6,29.21145005]
[1744911497760,7.37300007,135.63,135.61,29.21145005]
[1744911497979,7.37300007,135.63,135.6,29.21145005]
[1744911498481,7.37300007,135.63,135.57,115.0726]
[1744911498673,25.80359775,135.64,135.6,29.21145005]
[1744911499681,25.80359775,135.64,135.61,29.21145005]
[1744911500055,25.80359775,135.64,135.6,29.21145005]
[1744911500660,29.21145005,135.62,135.55,100.5745]
[1744911500959,29.21145005,135.62,135.57,29.21145005]
[1744911501173,29.21145005,135.61,135.57,29.21145005]
[1744911501678,29.21145005,135.59,135.55,99.06]
[1744911501882,29.21145005,135.59,135.54,29.21145005]
[1744911502560,7.37571913,135.58,135.54,29.21145005]
[1744911502760,7.37571913,135.58,135.53,82.963]
[1744911502761,29.21145005,135.57,135.53,82.963]
[1744911502954,29.21145005,135.57,135.53,112.17445005]
[1744911503160,55.02646701,135.58,135.54,29.21145005]
[1744911505379,55.02646701,135.58,135.53,112.17445005]
[1744911505765,29.21145005,135.57,135.53,82.963]
[1744911506075,29.21145005,135.57,135.53,112.17445005]
[1744911506264,29.21145005,135.55,135.53,0.063]
[1744911506878,29.21145005,135.56,135.53,0.063]
[1744911507064,7.37735153,135.55,135.53,0.063]
[1744911508778,36.58880158,135.55,135.53,0.063]
[1744911509086,7.37735153,135.55,135.53,0.063]
[1744911510285,29.21145005,135.54,135.53,0.063]
[1744911510669,29.21145005,135.54,135.53,1e-08]
[1744911510862,55.21145005,135.54,135.52,1e-08]
[1744911511064,26.0,135.52,135.49,0.063]
[1744911511263,29.21145005,135.5,135.49,0.063]
[1744911512282,29.21145005,135.5,135.48,0.063]
[1744911512283,7.38061849,135.49,135.48,0.063]
[1744911512587,36.59206854,135.49,135.48,0.063]
[1744911513165,25.67765963,135.49,135.48,0.063]
[1744911514386,7.38061849,135.49,135.48,0.063]
[1744911515263,25.67765963,135.49,135.48,0.063]
[1744911515662,7.38061849,135.49,135.48,0.063]
[1744911516886,25.67765963,135.49,135.48,0.063]
[1744911517685,7.38061849,135.49,135.48,0.063]
[1744911518380,18.44639771,135.53,135.48,18.36004114]